fUST/lending_fUST_20250707
["ID","MTS","AMOUNT","RATE_DAILY","PERIOD"]
[370023592,1751838643048,-18268.35314878,0.00017373,2]
[370023593,1751838643058,-428.72,0.0001738,2]
[370023594,1751838643067,-460.0,0.0001738,2]
[370023595,1751838643077,-460.0,0.0001738,2]
[370023596,1751838643086,-885.3,0.0001738,2]
[370023597,1751838643095,-269.80324741,0.00017381,2]
[370023598,1751838643108,-190.19675259,0.00017381,2]
[370023599,1751838643117,-349.63,0.00017382,2]
[370023600,1751838643126,-460.0,0.00017382,2]
[370023601,1751838643136,-515.81,0.00017382,2]
[370023602,1751838643145,-142.53045573,0.00017382,2]
[370023603,1751838643157,-62.08954427,0.00017382,2]
[370023604,1751838643166,-460.0,0.00017382,2]
[370023605,1751838643175,-616.81,0.00017382,2]
[370023606,1751838643185,-536.29060293,0.00017382,2]
[370023607,1751838643197,-206.45939707,0.00017382,2]
[370023608,1751838643207,-460.0,0.00017382,2]
[370023609,1751838643216,-496.95303914,0.00017382,2]
[370023610,1751838643247,-165.99696086,0.00017382,2]
[370023612,1751838643258,-517.18,0.00017382,2]
[370023614,1751838643268,-530.35,0.00017382,2]
[370023616,1751838643278,-858.64,0.00017382,2]
[370023618,1751838643288,-949.25,0.00017382,2]
[370023620,1751838643297,-460.0,0.00017382,2]
[370023622,1751838643307,-460.0,0.00017382,2]
[370023624,1751838643316,-771.88,0.00017382,2]
[370023626,1751838643326,-627.58,0.00017382,2]
[370023628,1751838643335,-460.0,0.00017382,2]
[370023630,1751838643344,-460.56,0.00017382,2]
[370023631,1751838643353,-460.0,0.00017382,2]
[370023633,1751838643362,-460.0,0.00017382,2]
[370023635,1751838643372,-460.0,0.00017382,2]
[370023637,1751838643381,-460.0,0.00017382,2]
[370023639,1751838643390,-460.0,0.00017382,2]
[370023641,1751838643400,-460.0,0.00017382,2]
[370023643,1751838643410,-460.0,0.00017382,2]
[370023645,1751838643419,-688.49,0.00017382,2]
[370023646,1751838643429,-544.87,0.00017382,2]
[370023647,1751838643438,-460.0,0.00017383,2]
[370023648,1751838643447,-460.0,0.00017383,2]
[370023649,1751838643456,-460.0,0.00017383,2]
[370023650,1751838643466,-460.0,0.00017383,2]
[370023651,1751838643476,-460.0,0.00017383,2]
[370023652,1751838643486,-460.0,0.00017383,2]
[370023653,1751838643495,-1428.84,0.00017383,2]
[370023654,1751838643505,-460.0,0.00017383,2]
[370023655,1751838643514,-460.0,0.00017383,2]
[370023656,1751838643523,-460.0,0.00017383,2]
[370023657,1751838643533,-460.0,0.00017383,2]
[370023658,1751838643543,-579.67,0.00017383,2]
[370023659,1751838643553,-460.0,0.00017385,2]
[370023660,1751838643562,-483.93,0.00017385,2]
[370023661,1751838643571,-460.0,0.00017385,2]
[370023662,1751838643581,-499.75620331,0.00017385,2]
[370023663,1751838643590,-937.96,0.00017385,2]
[370023664,1751838643599,-460.0,0.00017385,2]
[370023665,1751838643608,-305.11,0.00017385,2]
[370023666,1751838643617,-460.0,0.00017385,2]
[370023667,1751838643626,-460.0,0.00017385,2]
[370023668,1751838643636,-734.02,0.00017385,2]
[370023669,1751838643645,-375.92,0.00017385,2]
[370023670,1751838643655,-1899.82,0.00017385,2]
[370023671,1751838643664,-558.05,0.00017385,2]
[370023673,1751838643675,-369.22034292,0.00017387,2]
[370023675,1751838643684,-327.953369,0.00017436,2]
[370023677,1751838643693,-500.0,0.00017459,2]
[370023678,1751838643702,-500.0,0.00017459,2]
[370023680,1751838643712,-500.0,0.00017471,2]
[370023681,1751838643721,-500.0,0.00017471,2]
[370023682,1751838643731,-500.0,0.00017471,2]
[370023683,1751838643740,-500.0,0.00017471,2]
[370023684,1751838643749,-500.0,0.00017471,2]
[370023685,1751838643760,-502.02912215,0.00017471,2]
[370023686,1751838643770,-500.0,0.00017471,2]
[370023687,1751838643779,-500.18007084,0.00017471,2]
[370023688,1751838643789,-469.92915345,0.00017503,2]
[370023689,1751838643799,-500.0,0.00017503,2]
[370023690,1751838643809,-460.0,0.00017654,2]
[370023691,1751838643822,-460.0,0.00017654,2]
[370023692,1751838643831,-885.3,0.00017654,2]
[370023693,1751838643840,-460.0,0.00017655,2]
[370023694,1751838643849,-307.93,0.00017656,2]
[370023695,1751838643859,-460.0,0.00017656,2]
[370023696,1751838643868,-616.81,0.00017656,2]
[370023697,1751838643877,-742.75,0.00017656,2]
[370023698,1751838643887,-460.0,0.00017656,2]
[370023699,1751838643897,-662.95,0.00017656,2]
[370023700,1751838643906,-530.35,0.00017656,2]
[370023701,1751838643915,-858.64,0.00017656,2]
[370023702,1751838643925,-949.25,0.00017656,2]
[370023703,1751838643935,-460.0,0.00017656,2]
[370023704,1751838643944,-460.0,0.00017656,2]
[370023705,1751838643953,-771.88,0.00017656,2]
[370023706,1751838643962,-627.58,0.00017656,2]
[370023707,1751838643972,-460.0,0.00017656,2]
[370023708,1751838643981,-165.67,0.00017656,2]
[370023709,1751838643991,-460.0,0.00017656,2]
[370023710,1751838644001,-460.0,0.00017656,2]
[370023711,1751838644014,-460.0,0.00017656,2]
[370023712,1751838644023,-460.0,0.00017656,2]
[370023713,1751838644032,-688.49,0.00017656,2]
[370023714,1751838644042,-460.0,0.00017657,2]
[370023715,1751838644052,-460.0,0.00017657,2]
[370023716,1751838644062,-253.35,0.00017657,2]
[370023717,1751838644071,-460.0,0.00017657,2]
[370023718,1751838644080,-460.0,0.00017657,2]
[370023720,1751838644089,-460.0,0.00017657,2]
[370023722,1751838644098,-1428.84,0.00017657,2]
[370023723,1751838644108,-460.0,0.00017657,2]
[370023724,1751838644117,-460.0,0.00017657,2]
[370023725,1751838644126,-460.0,0.00017657,2]
[370023726,1751838644135,-460.0,0.00017657,2]
[370023727,1751838644144,-579.67,0.00017657,2]
[370023728,1751838644156,-460.0,0.00017659,2]
[370023729,1751838644166,-460.0,0.00017659,2]
[370023730,1751838644175,-937.96,0.00017659,2]
[370023731,1751838644185,-460.0,0.00017659,2]
[370023732,1751838644194,-252.30618639,0.00017659,2]
[370023733,1751838644204,-460.0,0.00017659,2]
[370023734,1751838644213,-734.02,0.00017659,2]
[370023735,1751838644222,-1899.82,0.00017659,2]
[370023736,1751838644232,-558.05,0.00017659,2]
[370023737,1751838644241,-500.0,0.00017738,2]
[370023738,1751838644250,-460.0,0.00017928,2]
[370023739,1751838644259,-460.0,0.00017928,2]
[370023740,1751838644269,-885.3,0.00017928,2]
[370023741,1751838644278,-520.88,0.00017929,2]
[370023742,1751838644287,-460.0,0.0001793,2]
[370023743,1751838644297,-616.81,0.0001793,2]
[370023744,1751838644306,-742.75,0.0001793,2]
[370023745,1751838644315,-460.0,0.0001793,2]
[370023746,1751838644324,-662.95,0.0001793,2]
[370023747,1751838644334,-530.35,0.0001793,2]
[370023748,1751838644343,-858.64,0.0001793,2]
[370023749,1751838644352,-949.25,0.0001793,2]
[370023750,1751838644362,-460.0,0.0001793,2]
[370023751,1751838644371,-517.88,0.0001793,2]
[370023752,1751838644380,-771.88,0.0001793,2]
[370023753,1751838644390,-627.58,0.0001793,2]
[370023754,1751838644400,-508.45,0.0001793,2]
[370023755,1751838644411,-163.78515762,0.0001793,2]
[370023756,1751838644420,-460.0,0.0001793,2]
[370023757,1751838644429,-460.0,0.0001793,2]
[370023758,1751838644439,-688.49,0.0001793,2]
[370023759,1751838644449,-460.0,0.00017931,2]
[370023760,1751838644458,-460.0,0.00017931,2]
[370023761,1751838644468,-460.0,0.00017931,2]
[370023762,1751838644479,-460.0,0.00017931,2]
[370023763,1751838644489,-460.0,0.00017931,2]
[370023764,1751838644500,-1428.84,0.00017931,2]
[370023765,1751838644509,-460.0,0.00017931,2]
[370023766,1751838644520,-460.0,0.00017931,2]
[370023767,1751838644531,-460.0,0.00017931,2]
[370023768,1751838644541,-460.0,0.00017931,2]
[370023769,1751838644551,-579.67,0.00017931,2]
[370023770,1751838644561,-460.0,0.00017933,2]
[370023771,1751838644570,-460.0,0.00017933,2]
[370023772,1751838644581,-937.96,0.00017933,2]
[370023773,1751838644590,-460.0,0.00017933,2]
[370023774,1751838644601,-460.0,0.00017933,2]
[370023775,1751838644612,-734.02,0.00017933,2]
[370023776,1751838644622,-1899.82,0.00017933,2]
[370023777,1751838644632,-558.05,0.00017933,2]
[370023778,1751838644642,-7539.1867948,0.00018,2]
[370023779,1751838644652,-1000.0,0.00018007,2]
[370023780,1751838644661,-500.0,0.00018007,2]
[370023781,1751838644671,-1000.0,0.00018019,2]
[370023782,1751838644681,-1000.0,0.00018019,2]
[370023783,1751838644691,-1000.0,0.00018019,2]
[370023784,1751838644701,-500.0,0.00018019,2]
[370023785,1751838644710,-1000.0,0.00018019,2]
[370023786,1751838644719,-2011.66611912,0.00018037,2]
[370023787,1751838644729,-500.0,0.00018051,2]
[370023788,1751838644740,-160.0,0.0001807,2]
[370023789,1751838644750,-160.0,0.0001807,2]
[370023790,1751838644760,-214.03875559,0.0001807,2]
[370023791,1751838644770,-837.69501035,0.0001807,2]
[370023792,1751838644779,-160.0,0.0001807,2]
[370023793,1751838644789,-230.45878613,0.0001807,2]
[370023794,1751838644799,-160.0,0.0001807,2]
[370023795,1751838644809,-12582.33653824,0.0001807,2]
[370023796,1751838644823,-160.0,0.0001807,2]
[370023797,1751838644832,-848.15551661,0.0001807,2]
[370023798,1751838644841,-215.18120504,0.0001807,2]
[370023799,1751838644851,-160.0,0.0001807,2]
[370023800,1751838644860,-160.0,0.0001807,2]
[370023801,1751838644870,-7539.18679468,0.00018176,2]
[370023802,1751838644880,-359.65,0.00018202,2]
[370023803,1751838644890,-417.34,0.00018202,2]
[370023804,1751838644899,-885.3,0.00018202,2]
[370023805,1751838644908,-460.0,0.00018204,2]
[370023806,1751838644918,-616.81,0.00018204,2]
[370023807,1751838644927,-742.75,0.00018204,2]
[370023808,1751838644937,-460.0,0.00018204,2]
[370023809,1751838644946,-662.95,0.00018204,2]
[370023810,1751838644955,-530.35,0.00018204,2]
[370023811,1751838644966,-858.64,0.00018204,2]
[370023812,1751838644976,-949.25,0.00018204,2]
[370023813,1751838644986,-305.19,0.00018204,2]
[370023814,1751838644996,-771.88,0.00018204,2]
[370023815,1751838645006,-627.58,0.00018204,2]
[370023816,1751838645016,-377.24716146,0.00018204,2]
[370023817,1751838645026,-460.0,0.00018204,2]
[370023818,1751838645035,-688.49,0.00018204,2]
[370023819,1751838645044,-460.0,0.00018205,2]
[370023820,1751838645054,-558.85,0.00018205,2]
[370023821,1751838645065,-460.0,0.00018205,2]
[370023822,1751838645075,-460.0,0.00018205,2]
[370023823,1751838645085,-460.0,0.00018205,2]
[370023824,1751838645094,-1428.84,0.00018205,2]
[370023825,1751838645104,-460.0,0.00018205,2]
[370023826,1751838645115,-460.0,0.00018205,2]
[370023827,1751838645125,-460.0,0.00018205,2]
[370023828,1751838645134,-460.0,0.00018205,2]
[370023829,1751838645143,-579.67,0.00018205,2]
[370023830,1751838645153,-460.0,0.00018207,2]
[370023831,1751838645162,-460.0,0.00018207,2]
[370023832,1751838645171,-937.96,0.00018207,2]
[370023833,1751838645182,-460.0,0.00018207,2]
[370023834,1751838645191,-460.0,0.00018207,2]
[370023835,1751838645201,-734.02,0.00018207,2]
[370023836,1751838645210,-1899.82,0.00018207,2]
[370023837,1751838645220,-558.05,0.00018207,2]
[370023838,1751838645229,-500.0,0.00018217,2]
[370023839,1751838645239,-9503.6206315,0.00018232,2]
[370023840,1751838645248,-500.0,0.00018287,2]
[370023841,1751838645257,-207.4,0.00018287,2]
[370023842,1751838645267,-500.0,0.00018287,2]
[370023843,1751838645276,-151.0,0.00018287,2]
[370023844,1751838645285,-690.642,0.00018287,2]
[370023845,1751838645294,-3000.0,0.00018287,2]
[370023846,1751838645303,-151.0,0.00018287,2]
[370023847,1751838645313,-3000.0,0.00018287,2]
[370023848,1751838645322,-151.0,0.00018287,2]
[370023849,1751838645332,-151.0,0.00018287,2]
[370023850,1751838645341,-3000.0,0.00018287,2]
[370023851,1751838645350,-151.0,0.00018287,2]
[370023852,1751838645360,-151.0,0.00018287,2]
[370023853,1751838645370,-151.0,0.00018287,2]
[370023854,1751838645379,-1200.0,0.00018287,2]
[370023855,1751838645389,-151.0,0.00018287,2]
[370023856,1751838645399,-1200.0,0.00018287,2]
[370023857,1751838645409,-151.0,0.00018287,2]
[370023858,1751838645419,-3000.0,0.00018287,2]
[370023859,1751838645428,-1200.0,0.00018287,2]
[370023860,1751838645439,-151.0,0.00018287,2]
[370023861,1751838645448,-3000.0,0.00018287,2]
[370023862,1751838645457,-151.0,0.00018287,2]
[370023863,1751838645467,-1200.0,0.00018287,2]
[370023864,1751838645476,-3000.0,0.00018287,2]
[370023865,1751838645486,-1429.45789665,0.00018287,2]
[370023866,1751838645495,-1200.0,0.00018287,2]
[370023867,1751838645505,-641.67646439,0.00018287,2]
[370023868,1751838645514,-151.0,0.00018287,2]
[370023870,1751838645524,-151.0,0.00018287,2]
[370023872,1751838645534,-151.0,0.00018287,2]
[370023873,1751838645544,-167.85040026,0.00018287,2]
[370023874,1751838645554,-151.0,0.00018287,2]
[370023875,1751838645563,-5000.0,0.00018287,2]
[370023876,1751838645574,-151.0,0.00018287,2]
[370023877,1751838645584,-151.0,0.00018287,2]
[370023878,1751838645594,-151.0,0.00018287,2]
[370023879,1751838645605,-151.0,0.00018287,2]
[370023880,1751838645615,-151.0,0.00018287,2]
[370023881,1751838645627,-151.0,0.00018287,2]
[370023882,1751838645639,-215.10867815,0.00018287,2]
[370023883,1751838645648,-1901.90166308,0.00018287,2]
[370023884,1751838645659,-25000.0,0.00018287,2]
[370023885,1751838645668,-500.0,0.00018301,2]
[370023886,1751838645678,-500.0,0.00018341,2]
[370023887,1751838645688,-500.0,0.00018341,2]
[370023888,1751838645697,-500.0,0.00018341,2]
[370023889,1751838645708,-500.0,0.00018341,2]
[370023890,1751838645718,-500.0,0.00018341,2]
[370023891,1751838645729,-500.0,0.00018341,2]
[370023892,1751838645740,-500.0,0.00018341,2]
[370023894,1751838645749,-500.0,0.00018341,2]
[370023895,1751838645759,-500.0,0.00018341,2]
[370023896,1751838645769,-500.0,0.00018341,2]
[370023897,1751838645779,-353.65460956,0.00018341,2]
[370023898,1751838645788,-716.195754,0.00018342,2]
[370023899,1751838645798,-202.72797609,0.00018357,2]
[370023900,1751838645807,-500.0,0.00018384,2]
[370023901,1751838645821,-420.0,0.00018386,2]
[370023902,1751838645830,-1680.0,0.00018387,2]
[370023903,1751838645839,-742.6949969,0.00018397,2]
[370023904,1751838645849,-4110.20679834,0.00018439,2]
[370023905,1751838645858,-7539.18679468,0.00018452,2]
[370023906,1751838645868,-770.17471178,0.00018452,2]
[370023907,1751838645877,-500.0,0.00018468,2]
[370023908,1751838645886,-885.3,0.00018476,2]
[370023909,1751838645895,-1588.0,0.00018477,2]
[370023910,1751838645905,-460.0,0.00018478,2]
[370023911,1751838645914,-616.81,0.00018478,2]
[370023912,1751838645923,-742.75,0.00018478,2]
[370023913,1751838645932,-460.0,0.00018478,2]
[370023914,1751838645942,-662.95,0.00018478,2]
[370023915,1751838645951,-530.35,0.00018478,2]
[370023916,1751838645961,-858.64,0.00018478,2]
[370023917,1751838645970,-949.25,0.00018478,2]
[370023918,1751838645979,-771.88,0.00018478,2]
[370023919,1751838645989,-627.58,0.00018478,2]
[370023920,1751838645998,-460.0,0.00018478,2]
[370023921,1751838646140,-688.49,0.00018478,2]
[370023922,1751838646149,-460.0,0.00018479,2]
[370023923,1751838646159,-460.0,0.00018479,2]
[370023924,1751838646169,-460.0,0.00018479,2]
[370023925,1751838646179,-460.0,0.00018479,2]
[370023926,1751838646189,-1428.84,0.00018479,2]
[370023927,1751838646199,-460.0,0.00018479,2]
[370023928,1751838646209,-460.0,0.00018479,2]
[370023929,1751838646218,-460.0,0.00018479,2]
[370023930,1751838646228,-460.0,0.00018479,2]
[370023931,1751838646237,-579.67,0.00018479,2]
[370023932,1751838646247,-460.0,0.00018481,2]
[370023934,1751838646257,-460.0,0.00018481,2]
[370023936,1751838646266,-937.96,0.00018481,2]
[370023938,1751838646276,-460.0,0.00018481,2]
[370023940,1751838646285,-460.0,0.00018481,2]
[370023942,1751838646295,-734.02,0.00018481,2]
[370023944,1751838646305,-1899.82,0.00018481,2]
[370023946,1751838646314,-558.05,0.00018481,2]
[370023948,1751838646323,-798.67117612,0.00018507,2]
[370023950,1751838646333,-500.0,0.00018551,2]
[370023952,1751838646343,-1500.0,0.00018555,2]
[370023953,1751838646352,-828.22200964,0.00018562,2]
[370023954,1751838646362,-500.0,0.00018567,2]
[370023955,1751838646371,-1500.0,0.00018567,2]
[370023956,1751838646381,-858.86622399,0.00018617,2]
[370023957,1751838646391,-500.0,0.00018634,2]
[370023958,1751838646400,-973.87936729,0.00018672,2]
[370023959,1751838646410,-500.0,0.00018718,2]
[370023960,1751838646420,-7539.18679468,0.00018728,2]
[370023961,1751838646430,-885.3,0.0001875,2]
[370023962,1751838646440,-460.0,0.00018752,2]
[370023963,1751838646450,-616.81,0.00018752,2]
[370023964,1751838646460,-742.75,0.00018752,2]
[370023965,1751838646469,-460.0,0.00018752,2]
[370023966,1751838646478,-662.95,0.00018752,2]
[370023967,1751838646488,-530.35,0.00018752,2]
[370023968,1751838646497,-858.64,0.00018752,2]
[370023969,1751838646507,-949.25,0.00018752,2]
[370023970,1751838646516,-771.88,0.00018752,2]
[370023971,1751838646526,-627.58,0.00018752,2]
[370023972,1751838646535,-460.0,0.00018752,2]
[370023973,1751838646545,-688.49,0.00018752,2]
[370023974,1751838646554,-460.0,0.00018753,2]
[370023975,1751838646564,-460.0,0.00018753,2]
[370023976,1751838646573,-460.0,0.00018753,2]
[370023977,1751838646583,-460.0,0.00018753,2]
[370023978,1751838646592,-1428.84,0.00018753,2]
[370023979,1751838646602,-460.0,0.00018753,2]
[370023980,1751838646612,-460.0,0.00018753,2]
[370023981,1751838646622,-460.0,0.00018753,2]
[370023982,1751838646632,-460.0,0.00018753,2]
[370023983,1751838646642,-579.67,0.00018753,2]
[370023984,1751838646651,-460.0,0.00018755,2]
[370023985,1751838646661,-460.0,0.00018755,2]
[370023986,1751838646671,-937.96,0.00018755,2]
[370023987,1751838646680,-460.0,0.00018755,2]
[370023988,1751838646691,-460.0,0.00018755,2]
[370023989,1751838646700,-734.02,0.00018755,2]
[370023990,1751838646710,-1899.82,0.00018755,2]
[370023991,1751838646719,-558.05,0.00018755,2]
[370023992,1751838646728,-500.0,0.00018801,2]
[370023993,1751838646738,-5000.0,0.00018835,2]
[370023994,1751838646747,-500.0,0.00018884,2]
[370023995,1751838646756,-5430.08292506,0.000189,2]
[370023996,1751838646766,-500.0,0.00018968,2]
[370023997,1751838646778,-7539.18679468,0.00019003,2]
[370023998,1751838646789,-885.3,0.00019024,2]
[370023999,1751838646799,-460.0,0.00019026,2]
[370024000,1751838646809,-616.81,0.00019026,2]
[370024002,1751838646824,-742.75,0.00019026,2]
[370024003,1751838646833,-266.78,0.00019026,2]
[370024004,1751838646843,-662.95,0.00019026,2]
[370024005,1751838646852,-530.35,0.00019026,2]
[370024006,1751838646862,-858.64,0.00019026,2]
[370024007,1751838646871,-949.25,0.00019026,2]
[370024008,1751838646881,-771.88,0.00019026,2]
[370024009,1751838646891,-627.58,0.00019026,2]
[370024010,1751838646901,-460.0,0.00019026,2]
[370024011,1751838646910,-688.49,0.00019026,2]
[370024012,1751838646920,-311.64938991,0.00019027,2]
[370024013,1751838646929,-460.0,0.00019027,2]
[370024014,1751838646939,-460.0,0.00019027,2]
[370024015,1751838646949,-460.0,0.00019027,2]
[370024016,1751838646958,-1428.84,0.00019027,2]
[370024017,1751838646968,-460.0,0.00019027,2]
[370024018,1751838646977,-460.0,0.00019027,2]
[370024019,1751838646987,-460.0,0.00019027,2]
[370024020,1751838646996,-460.0,0.00019027,2]
[370024021,1751838647006,-579.67,0.00019027,2]
[370024022,1751838647015,-460.0,0.00019029,2]
[370024023,1751838647026,-937.96,0.00019029,2]
[370024024,1751838647035,-460.0,0.00019029,2]
[370024025,1751838647045,-460.0,0.00019029,2]
[370024026,1751838647054,-734.02,0.00019029,2]
[370024027,1751838647064,-1899.82,0.00019029,2]
[370024028,1751838647074,-558.05,0.00019029,2]
[370024029,1751838647083,-500.0,0.00019051,2]
[370024030,1751838647092,-2000.0,0.00019103,2]
[370024031,1751838647102,-500.0,0.00019134,2]
[370024032,1751838647111,-666.0,0.00019178,2]
[370024033,1751838647121,-894.183709,0.00019178,2]
[370024034,1751838647130,-500.0,0.00019218,2]
[370024035,1751838647140,-500.0,0.0001923,2]
[370024036,1751838647150,-500.0,0.00019263,2]
[370024037,1751838647159,-7539.18679468,0.00019279,2]
[370024038,1751838647169,-151.59975329,0.00019288,2]
[370024039,1751838647178,-151.0,0.00019288,2]
[370024040,1751838647188,-151.0,0.00019288,2]
[370024041,1751838647198,-151.0,0.00019288,2]
[370024042,1751838647208,-151.0,0.00019288,2]
[370024043,1751838647217,-234.44887311,0.00019288,2]
[370024044,1751838647227,-500.0,0.00019288,2]
[370024045,1751838647237,-151.0,0.00019288,2]
[370024046,1751838647246,-151.0,0.00019288,2]
[370024047,1751838647256,-500.0,0.00019288,2]
[370024048,1751838647265,-151.0,0.00019288,2]
[370024049,1751838647274,-151.0,0.00019288,2]
[370024050,1751838647284,-151.0,0.00019288,2]
[370024051,1751838647293,-151.0675331,0.00019288,2]
[370024052,1751838647303,-151.17801057,0.00019288,2]
[370024053,1751838647312,-500.0,0.00019288,2]
[370024054,1751838647322,-151.0,0.00019288,2]
[370024055,1751838647331,-151.0,0.00019288,2]
[370024056,1751838647340,-151.0,0.00019288,2]
[370024057,1751838647350,-151.0,0.00019288,2]
[370024058,1751838647359,-151.0,0.00019288,2]
[370024059,1751838647369,-151.0,0.00019288,2]
[370024060,1751838647378,-151.0,0.00019288,2]
[370024061,1751838647387,-151.0,0.00019288,2]
[370024062,1751838647397,-151.0,0.00019288,2]
[370024063,1751838647406,-151.0,0.00019288,2]
[370024064,1751838647416,-151.0,0.00019288,2]
[370024065,1751838647426,-151.0,0.00019288,2]
[370024066,1751838647435,-151.0,0.00019288,2]
[370024067,1751838647444,-245.11139049,0.00019288,2]
[370024068,1751838647454,-500.0,0.00019288,2]
[370024069,1751838647463,-151.0,0.00019288,2]
[370024070,1751838647472,-151.0,0.00019288,2]
[370024071,1751838647482,-885.3,0.00019298,2]
[370024072,1751838647491,-460.0,0.000193,2]
[370024073,1751838647501,-616.81,0.000193,2]
[370024074,1751838647510,-742.75,0.000193,2]
[370024075,1751838647520,-662.95,0.000193,2]
[370024076,1751838647530,-530.35,0.000193,2]
[370024077,1751838647539,-858.64,0.000193,2]
[370024078,1751838647550,-949.25,0.000193,2]
[370024079,1751838647559,-771.88,0.000193,2]
[370024080,1751838647569,-627.58,0.000193,2]
[370024081,1751838647578,-460.0,0.000193,2]
[370024082,1751838647588,-688.49,0.000193,2]
[370024083,1751838647597,-376.27499413,0.00019301,2]
[370024084,1751838647606,-460.0,0.00019301,2]
[370024085,1751838647615,-460.0,0.00019301,2]
[370024086,1751838647625,-1428.84,0.00019301,2]
[370024087,1751838647635,-460.0,0.00019301,2]
[370024088,1751838647644,-460.0,0.00019301,2]
[370024089,1751838647653,-455.03,0.00019301,2]
[370024090,1751838647662,-460.0,0.00019301,2]
[370024091,1751838647672,-579.67,0.00019301,2]
[370024092,1751838647682,-500.0,0.00019301,2]
[370024093,1751838647692,-392.89,0.00019303,2]
[370024094,1751838647701,-937.96,0.00019303,2]
[370024095,1751838647711,-503.36,0.00019303,2]
[370024096,1751838647720,-460.0,0.00019303,2]
[370024097,1751838647729,-734.02,0.00019303,2]
[370024098,1751838647738,-1899.82,0.00019303,2]
[370024099,1751838647748,-558.05,0.00019303,2]
[370024100,1751838647757,-151.0,0.00019315,2]
[370024101,1751838647766,-151.0,0.00019315,2]
[370024102,1751838647775,-500.0,0.00019315,2]
[370024103,1751838647784,-151.0,0.00019315,2]
[370024104,1751838647794,-500.0,0.00019315,2]
[370024105,1751838647803,-151.0,0.00019315,2]
[370024106,1751838647818,-151.0,0.00019315,2]
[370024107,1751838647826,-151.0,0.00019315,2]
[370024108,1751838647836,-500.0,0.00019315,2]
[370024109,1751838647846,-151.0,0.00019315,2]
[370024110,1751838647855,-151.0,0.00019315,2]
[370024111,1751838647865,-151.0,0.00019315,2]
[370024112,1751838647875,-151.0,0.00019315,2]
[370024113,1751838647884,-151.0,0.00019315,2]
[370024114,1751838647895,-151.0,0.00019315,2]
[370024115,1751838647905,-151.0,0.00019315,2]
[370024116,1751838647914,-151.0,0.00019315,2]
[370024117,1751838647924,-151.0,0.00019315,2]
[370024118,1751838647933,-151.0,0.00019315,2]
[370024119,1751838647943,-500.43418013,0.00019315,2]
[370024120,1751838647953,-100000.0,0.00019329,2]
[370024121,1751838647962,-198.0,0.00019343,2]
[370024122,1751838647971,-151.0,0.00019343,2]
[370024123,1751838647981,-568.74627186,0.00019343,2]
[370024124,1751838647990,-182.40864838,0.00019343,2]
[370024125,1751838648001,-500.0,0.00019343,2]
[370024126,1751838648010,-198.0,0.00019343,2]
[370024127,1751838648020,-198.0,0.00019343,2]
[370024128,1751838648030,-151.0,0.00019343,2]